fUST/lending_fUST_20250725
["ID","MTS","AMOUNT","RATE_DAILY","PERIOD"]
[374625287,1753384269409,-872.2,0.00024285,2]
[374625288,1753384269418,-460.0,0.00024285,2]
[374625289,1753384269427,-4546.8,0.00024285,2]
[374625290,1753384269435,-2803.82,0.00024285,2]
[374625291,1753384269444,-838.8,0.00024285,2]
[374625292,1753384269454,-684.53,0.00024285,2]
[374625293,1753384269463,-2888.36,0.00024285,2]
[374625294,1753384269472,-460.0,0.00024285,2]
[374625295,1753384269482,-1671.5,0.00024285,2]
[374625296,1753384269491,-1152.42,0.00024285,2]
[374625297,1753384269500,-1006.82,0.00024285,2]
[374625298,1753384269509,-1310.29,0.00024285,2]
[374625299,1753384269518,-460.0,0.00024285,2]
[374625300,1753384269527,-200.13,0.00024285,2]
[374625301,1753384269537,-580.47,0.00024285,2]
[374625302,1753384269546,-2883.24,0.00024285,2]
[374625303,1753384269556,-753.75,0.00024285,2]
[374625304,1753384269565,-987.14,0.00024285,2]
[374625305,1753384269574,-663.42,0.00024285,2]
[374625306,1753384269583,-894.42,0.00024285,2]
[374625307,1753384269592,-662.47,0.00024285,2]
[374625308,1753384269602,-767.36,0.00024285,2]
[374625309,1753384269611,-3602.07,0.00024285,2]
[374625310,1753384269621,-499.28,0.00024285,2]
[374625311,1753384269631,-858.77,0.00024285,2]
[374625312,1753384269640,-526.29,0.00024285,2]
[374625313,1753384269649,-5901.46,0.00024285,2]
[374625314,1753384269662,-1225.72,0.00024285,2]
[374625315,1753384269671,-460.0,0.00024285,2]
[374625316,1753384269680,-3762.69,0.00024285,2]
[374625317,1753384269690,-1125.09,0.00024285,2]
[374625318,1753384269701,-460.0,0.00024285,2]
[374625319,1753384269711,-946.17,0.00024285,2]
[374625320,1753384269721,-1815.56,0.00024285,2]
[374625321,1753384269731,-1612.68,0.00024285,2]
[374625322,1753384269740,-5542.35,0.00024285,2]
[374625323,1753384269750,-1315.25,0.00024285,2]
[374625324,1753384269760,-522.07,0.00024285,2]
[374625325,1753384269770,-5162.43,0.00024285,2]
[374625326,1753384269780,-460.0,0.00024285,2]
[374625327,1753384269789,-946.41,0.00024285,2]
[374625328,1753384269801,-499.36,0.00024285,2]
[374625329,1753384269811,-738.92,0.00024285,2]
[374625330,1753384269820,-2648.97,0.00024285,2]
[374625331,1753384269830,-151.0,0.00024286,7]
[374625332,1753384269839,-151.0,0.00024286,7]
[374625333,1753384269848,-337.09095,0.00024286,7]
[374625334,1753384269858,-337.09095,0.00024286,7]
[374625335,1753384269867,-151.0,0.00024286,7]
[374625336,1753384269878,-151.0,0.00024286,7]
[374625337,1753384269887,-151.0,0.00024286,7]
[374625338,1753384269897,-473.158341,0.00024286,7]
[374625339,1753384269906,-473.158341,0.00024286,7]
[374625340,1753384269916,-151.0,0.00024286,7]
[374625341,1753384269925,-151.0,0.00024286,7]
[374625342,1753384269934,-151.0,0.00024286,7]
[374625343,1753384269944,-151.0,0.00024286,7]
[374625344,1753384269953,-285.76026,0.00024286,7]
[374625345,1753384269962,-339.296401,0.00024286,7]
[374625346,1753384269972,-285.76026,0.00024286,7]
[374625347,1753384269981,-151.0,0.00024297,7]
[374625348,1753384269991,-176584.2983055,0.000243,4]
[374625349,1753384270000,-382799.01298206,0.000243,4]
[374625350,1753384270526,-350.943936,0.000243,4]
[374625352,1753384530278,256.478378,0.00013699,2]
[374625353,1753384547106,6326.25,0.00019,2]
[374625354,1753384574729,19067.61567571,0.00018552,2]
[374625355,1753384574751,18167.36275099,0.00018552,2]
[374625356,1753384769746,1263.8151605,0.00018675,2]
[374625359,1753384829114,10568.82208851,0.00018552,2]
[374625360,1753384829140,14331.17791149,0.00018552,2]
[374625361,1753384907486,1262.332327,0.00018527,2]
[374625374,1753385233148,-805.66343186,0.00019033,2]
[374625375,1753385239181,-394.33656814,0.00019033,2]
[374625376,1753385239206,-300.0,0.00019033,2]
[374625377,1753385239228,-4.93343043,0.00019034,2]
[374625378,1753385251482,-295.06656957,0.00019034,2]
[374625379,1753385251502,-300.0,0.00019034,2]
[374625380,1753385251522,-300.0,0.00019034,2]
[374625381,1753385251542,-755.0,0.00019034,2]
[374625382,1753385251562,-1564.76526526,0.00019036,2]
[374625384,1753385291127,301.12834536,0.000189,2]
[374625385,1753385310803,10000.0,0.00018524,2]
[374625387,1753385334180,302.72757545,0.000189,2]
[374625388,1753385362721,643.0,0.00025999,120]
[374625389,1753385378455,155.81223404,0.00018917,2]
[374625391,1753385432621,-302.72757545,0.00019089,2]
[374625392,1753385432631,-302.87931098,0.00019278,2]
[374625393,1753385432641,-178.3929195,0.00019427,2]
[374625394,1753385432650,-182.86461466,0.00019515,2]
[374625395,1753385432661,-383.24,0.00019517,3]
[374625396,1753385432670,-672.8,0.00019517,3]
[374625397,1753385432680,-300.0,0.00019525,2]
[374625398,1753385432690,-1200.0,0.00019525,2]
[374625399,1753385432699,-187.08018194,0.00019525,2]
[374625401,1753385432711,-96.91981806,0.00019525,2]
[374625403,1753385432721,-300.0,0.00019525,2]
[374625405,1753385432732,-32.90198395,0.00019526,2]
[374625407,1753385432748,-427.09801605,0.00019526,2]
[374625408,1753385432757,-460.0,0.00019526,2]
[374625409,1753385432769,-500.0,0.00019526,2]
[374625410,1753385432779,-168.51956064,0.00019526,2]
[374625411,1753385432788,-500.0,0.00019526,2]
[374625412,1753385432797,-500.0,0.00019526,2]
[374625413,1753385432806,-600.66502682,0.00019526,2]
[374625414,1753385432816,-687.48158234,0.00019527,2]
[374625415,1753385432825,-2125.09168062,0.00019527,2]
[374625416,1753385432835,-35533.38488435,0.00019527,2]
[374625434,1753385438520,-460.0,0.00019526,2]
[374625435,1753385438530,-460.0,0.00019526,2]
[374625436,1753385438540,-1077.32776313,0.00019527,2]
[374625437,1753385438574,-1296.86358796,0.00019527,2]
[374625438,1753385438585,-2321.51311683,0.00019527,2]
[374625439,1753385438684,-198034.67871858,0.00019527,2]
[374625440,1753385438695,-455.0435308,0.00019627,2]
[374625441,1753385438705,-795.66029935,0.00019627,2]
[374625442,1753385438715,-460.0,0.00019627,2]
[374625443,1753385438724,-460.0,0.00019627,2]
[374625444,1753385438734,-460.0,0.00019627,2]
[374625445,1753385438744,-460.48401583,0.00019627,2]
[374625446,1753385438754,-460.0,0.00019627,2]
[374625447,1753385438766,-460.0,0.00019627,2]
[374625448,1753385438776,-460.0,0.00019627,2]
[374625449,1753385438785,-460.0,0.00019627,2]
[374625450,1753385438796,-460.0,0.00019627,2]
[374625451,1753385438806,-460.0,0.00019627,2]
[374625452,1753385438816,-460.0,0.00019627,2]
[374625453,1753385438826,-460.0,0.00019627,2]
[374625454,1753385438836,-460.0,0.00019627,2]
[374625455,1753385438845,-460.0,0.00019627,2]
[374625456,1753385438855,-460.0,0.00019627,2]
[374625457,1753385438864,-413.57358301,0.00019627,2]
[374625458,1753385438874,-460.0,0.00019627,2]
[374625459,1753385438884,-460.0,0.00019627,2]
[374625460,1753385438894,-460.0,0.00019627,2]
[374625461,1753385438904,-460.0,0.00019627,2]
[374625462,1753385438914,-460.0,0.00019627,2]
[374625463,1753385438923,-460.0,0.00019627,2]
[374625464,1753385438933,-462.20882336,0.00019627,2]
[374625465,1753385438942,-460.0,0.00019627,2]
[374625466,1753385438952,-460.0,0.00019627,2]
[374625467,1753385438962,-460.0,0.00019627,2]
[374625468,1753385438971,-460.0,0.00019627,2]
[374625469,1753385438981,-460.0,0.00019627,2]
[374625470,1753385438990,-460.0,0.00019627,2]
[374625471,1753385438999,-460.0,0.00019627,2]
[374625472,1753385439009,-460.0,0.00019627,2]
[374625473,1753385439019,-460.03843944,0.00019627,2]
[374625474,1753385439029,-460.0,0.00019627,2]
[374625475,1753385439038,-460.0,0.00019627,2]
[374625476,1753385439047,-595.0,0.00019627,2]
[374625477,1753385439057,-452.87118701,0.00019627,2]
[374625478,1753385439066,-460.0,0.00019627,2]
[374625479,1753385439075,-460.0,0.00019627,2]
[374625480,1753385439085,-460.0,0.00019627,2]
[374625481,1753385439094,-237.07492919,0.00019627,2]
[374625482,1753385439103,-460.0,0.00019627,2]
[374625483,1753385439117,-460.0,0.00019627,2]
[374625484,1753385439131,-460.0,0.00019627,2]
[374625485,1753385439143,-460.0,0.00019627,2]
[374625486,1753385439152,-460.0,0.00019627,2]
[374625487,1753385439164,-460.0,0.00019627,2]
[374625488,1753385439174,-460.0,0.00019627,2]
[374625489,1753385439186,-460.0,0.00019627,2]
[374625490,1753385439196,-460.00109573,0.00019627,2]
[374625491,1753385439209,-460.0,0.00019627,2]
[374625492,1753385439219,-460.0,0.00019627,2]
[374625493,1753385439229,-460.0,0.00019627,2]
[374625494,1753385439240,-460.0,0.00019627,2]
[374625495,1753385439249,-460.0,0.00019627,2]
[374625496,1753385439260,-461.68123563,0.00019627,2]
[374625497,1753385439271,-460.0,0.00019627,2]
[374625498,1753385439280,-460.0,0.00019627,2]
[374625499,1753385439291,-461.16318744,0.00019627,2]
[374625500,1753385439301,-460.0,0.00019627,2]
[374625501,1753385439310,-370.41306049,0.00019627,2]
[374625502,1753385439319,-460.0,0.00019627,2]
[374625503,1753385439330,-460.0,0.00019627,2]
[374625504,1753385439341,-460.0,0.00019627,2]
[374625505,1753385439351,-460.0,0.00019627,2]
[374625506,1753385439361,-460.41564255,0.00019627,2]
[374625507,1753385439371,-460.0,0.00019627,2]
[374625508,1753385439380,-460.0,0.00019627,2]
[374625509,1753385439390,-460.0,0.00019627,2]
[374625510,1753385439400,-460.0,0.00019627,2]
[374625511,1753385439409,-460.0,0.00019627,2]
[374625512,1753385439419,-460.0,0.00019627,2]
[374625513,1753385439428,-460.0,0.00019627,2]
[374625514,1753385439438,-460.0,0.00019627,2]
[374625515,1753385439447,-460.0,0.00019627,2]
[374625516,1753385439457,-460.0,0.00019627,2]
[374625517,1753385439467,-555.31653507,0.00019627,2]
[374625518,1753385439476,-460.0,0.00019627,2]
[374625519,1753385439485,-273.02493693,0.00019627,2]
[374625520,1753385439495,-273.21416359,0.00019627,2]
[374625521,1753385439504,-460.0,0.00019627,2]
[374625522,1753385439513,-460.0,0.00019627,2]
[374625523,1753385439524,-460.0,0.00019627,2]
[374625524,1753385439534,-460.0,0.00019627,2]
[374625525,1753385439544,-460.0,0.00019627,2]
[374625526,1753385439555,-460.0,0.00019627,2]
[374625527,1753385439565,-460.0,0.00019627,2]
[374625528,1753385439574,-460.0,0.00019627,2]
[374625529,1753385439585,-460.0,0.00019627,2]
[374625530,1753385439594,-500.0,0.00019627,2]
[374625531,1753385439604,-460.93430916,0.00019627,2]
[374625532,1753385439614,-460.0,0.00019627,2]
[374625533,1753385439623,-460.0,0.00019627,2]
[374625534,1753385439632,-460.0,0.00019627,2]
[374625535,1753385439642,-460.0,0.00019627,2]
[374625536,1753385439651,-460.0,0.00019627,2]
[374625537,1753385439660,-460.0,0.00019627,2]
[374625538,1753385439669,-460.0,0.00019627,2]
[374625539,1753385439679,-316.97761444,0.00019627,2]
[374625540,1753385439688,-460.0,0.00019627,2]
[374625541,1753385439697,-460.0,0.00019627,2]
[374625542,1753385439707,-460.0,0.00019627,2]
[374625543,1753385439716,-460.0,0.00019627,2]
[374625544,1753385439725,-460.0,0.00019627,2]
[374625545,1753385439735,-465.42558319,0.00019627,2]
[374625546,1753385439745,-460.0,0.00019627,2]
[374625547,1753385439754,-460.0,0.00019627,2]
[374625548,1753385439763,-460.0,0.00019627,2]
[374625549,1753385439774,-713.76,0.00019627,2]
[374625550,1753385439784,-460.0,0.00019627,2]
[374625551,1753385439793,-460.0,0.00019627,2]
[374625552,1753385439802,-463.54067668,0.00019627,2]
[374625553,1753385439812,-460.0,0.00019627,2]
[374625554,1753385439822,-460.0,0.00019627,2]
[374625555,1753385439831,-460.0,0.00019627,2]
[374625556,1753385439840,-460.0,0.00019627,2]
[374625557,1753385439850,-460.0,0.00019627,2]
[374625558,1753385439859,-460.0,0.00019627,2]
[374625559,1753385439869,-460.0,0.00019627,2]
[374625560,1753385439879,-460.0,0.00019627,2]
[374625561,1753385439888,-460.0,0.00019627,2]
[374625562,1753385439898,-460.0,0.00019627,2]
[374625563,1753385439908,-460.0,0.00019627,2]
[374625564,1753385439917,-460.0,0.00019627,2]
[374625565,1753385439927,-460.0,0.00019627,2]
[374625566,1753385439936,-460.0,0.00019627,2]
[374625567,1753385439946,-404.29388804,0.00019627,2]
[374625568,1753385439955,-460.0,0.00019627,2]
[374625569,1753385439965,-460.0,0.00019627,2]
[374625570,1753385439975,-460.0,0.00019627,2]
[374625571,1753385439984,-460.0,0.00019627,2]
[374625572,1753385439993,-500.0,0.00019627,2]
[374625573,1753385440003,-460.0,0.00019627,2]
[374625574,1753385440013,-460.0,0.00019627,2]
[374625575,1753385440024,-460.0,0.00019627,2]
[374625576,1753385440034,-905.35,0.00019627,2]
[374625577,1753385440044,-460.0,0.00019627,2]
[374625578,1753385440209,-460.0,0.00019627,2]
[374625579,1753385440220,-460.0,0.00019627,2]
[374625580,1753385440230,-460.0,0.00019627,2]
[374625581,1753385440240,-460.0,0.00019627,2]
[374625582,1753385440250,-460.0,0.00019627,2]
[374625583,1753385440260,-460.0,0.00019627,2]
[374625584,1753385440272,-500.0,0.00019627,2]
[374625585,1753385440282,-460.0,0.00019627,2]
[374625586,1753385440292,-460.0,0.00019627,2]
[374625587,1753385440303,-460.0,0.00019627,2]
[374625588,1753385440315,-460.0,0.00019627,2]
[374625589,1753385440325,-460.0,0.00019627,2]
[374625590,1753385440335,-460.0,0.00019627,2]
[374625591,1753385440345,-460.0,0.00019627,2]
[374625592,1753385440356,-460.0,0.00019627,2]
[374625593,1753385440367,-460.0,0.00019627,2]
[374625595,1753385440376,-460.0,0.00019627,2]
[374625597,1753385440386,-460.0,0.00019627,2]
[374625599,1753385440395,-460.0,0.00019627,2]
[374625602,1753385440415,-460.0,0.00019627,2]
[374625604,1753385440427,-460.0,0.00019627,2]
[374625606,1753385440437,-460.0,0.00019627,2]
[374625608,1753385440447,-460.0,0.00019627,2]
[374625610,1753385440457,-460.0,0.00019627,2]
[374625612,1753385440467,-460.0,0.00019627,2]
[374625614,1753385440477,-460.0,0.00019627,2]
[374625616,1753385440488,-460.0,0.00019627,2]
[374625619,1753385440498,-462.99488661,0.00019627,2]
[374625621,1753385440508,-460.0,0.00019627,2]
[374625622,1753385440518,-486.77771038,0.00019627,2]
[374625624,1753385440528,-460.0,0.00019627,2]
[374625625,1753385440538,-460.0,0.00019627,2]
[374625626,1753385440548,-777.87,0.00019627,2]
[374625627,1753385440558,-333.46847986,0.00019627,2]
[374625628,1753385440568,-460.0,0.00019627,2]
[374625629,1753385440579,-460.0,0.00019627,2]
[374625630,1753385440588,-460.0,0.00019627,2]
[374625631,1753385440598,-464.58377306,0.00019627,2]
[374625632,1753385440608,-460.0,0.00019627,2]
[374625633,1753385440618,-460.0,0.00019627,2]
[374625634,1753385440627,-460.0,0.00019627,2]
[374625635,1753385440637,-460.0,0.00019627,2]
[374625636,1753385440647,-460.0,0.00019627,2]
[374625637,1753385440656,-460.0,0.00019627,2]
[374625638,1753385440666,-461.41147094,0.00019627,2]
[374625639,1753385440676,-460.0,0.00019627,2]
[374625640,1753385440686,-460.0,0.00019627,2]
[374625641,1753385440695,-460.0,0.00019627,2]
[374625642,1753385440705,-460.0,0.00019627,2]
[374625643,1753385440715,-460.0,0.00019627,2]
[374625644,1753385440725,-460.0,0.00019627,2]
[374625645,1753385440735,-460.98580716,0.00019627,2]
[374625646,1753385440745,-460.0,0.00019627,2]
[374625647,1753385440754,-460.0,0.00019627,2]
[374625648,1753385440764,-460.0,0.00019627,2]
[374625649,1753385440776,-460.0,0.00019627,2]
[374625650,1753385440786,-257.20965285,0.00019627,2]
[374625651,1753385440796,-345.70349381,0.00019627,2]
[374625652,1753385440806,-435.5400308,0.00019627,2]
[374625653,1753385440815,-534.68,0.00019627,2]
[374625654,1753385440825,-460.0,0.00019627,2]
[374625655,1753385440836,-460.0,0.00019627,2]
[374625656,1753385440846,-460.0,0.00019627,2]
[374625657,1753385440857,-461.25543892,0.00019627,2]
[374625658,1753385440867,-463.46964991,0.00019627,2]
[374625659,1753385440877,-683.5,0.00019627,2]
[374625660,1753385440886,-460.0,0.00019627,2]
[374625661,1753385440897,-460.0,0.00019627,2]
[374625662,1753385440907,-460.0,0.00019627,2]
[374625663,1753385440920,-460.0,0.00019627,2]
[374625664,1753385440930,-551.1,0.00019627,2]
[374625665,1753385440941,-488.06616328,0.00019627,2]
[374625666,1753385440952,-460.0,0.00019627,2]
[374625667,1753385440962,-1715.33,0.00019627,2]
[374625668,1753385440972,-460.0,0.00019627,2]
[374625669,1753385440983,-460.0,0.00019627,2]
[374625670,1753385440992,-460.0,0.00019627,2]
[374625671,1753385441003,-460.0,0.00019627,2]
[374625672,1753385441014,-783.45,0.00019627,2]
[374625673,1753385441026,-460.0,0.00019627,2]
[374625674,1753385441036,-776.79,0.00019627,2]
[374625675,1753385441046,-460.0,0.00019627,2]
[374625676,1753385441059,-460.0,0.00019627,2]
[374625677,1753385441069,-504.96527413,0.00019627,2]
[374625678,1753385441081,-460.0,0.00019627,2]
[374625679,1753385441092,-460.0,0.00019627,2]
[374625680,1753385441104,-460.0,0.00019627,2]
[374625681,1753385441120,-2564.74,0.00019627,2]
[374625682,1753385441133,-460.0,0.00019627,2]
[374625683,1753385441145,-460.0,0.00019627,2]
[374625684,1753385441156,-460.0,0.00019627,2]
[374625685,1753385441169,-508.95476554,0.00019627,2]
[374625686,1753385441178,-463.65,0.00019627,2]
[374625687,1753385441187,-460.0,0.00019627,2]
[374625688,1753385441198,-460.0,0.00019627,2]
[374625689,1753385441209,-460.0,0.00019627,2]
[374625690,1753385441220,-460.0,0.00019627,2]
[374625691,1753385441229,-460.0,0.00019627,2]
[374625692,1753385441240,-572.73,0.00019627,2]
[374625693,1753385441251,-460.0,0.00019627,2]
[374625694,1753385441262,-1157.22,0.00019627,2]
[374625695,1753385441272,-460.0,0.00019627,2]
[374625696,1753385441281,-460.0,0.00019627,2]
[374625697,1753385441291,-466.88458515,0.00019627,2]
[374625698,1753385441300,-460.0,0.00019627,2]
[374625699,1753385441310,-460.0,0.00019627,2]
[374625700,1753385441319,-460.0,0.00019627,2]
[374625701,1753385441329,-460.0,0.00019627,2]
[374625702,1753385441338,-646.9,0.00019627,2]
[374625703,1753385441348,-460.0,0.00019627,2]
[374625704,1753385441357,-460.0,0.00019627,2]
[374625705,1753385441367,-1765.12,0.00019627,2]
[374625706,1753385441376,-460.0,0.00019627,2]
[374625707,1753385441386,-1892.27,0.00019627,2]
[374625708,1753385441395,-620.12,0.00019627,2]
[374625709,1753385441406,-460.0,0.00019627,2]
[374625710,1753385441415,-460.0,0.00019627,2]
[374625711,1753385441426,-460.0,0.00019627,2]
[374625712,1753385441435,-751.65,0.00019627,2]
[374625713,1753385441445,-460.0,0.00019627,2]
[374625714,1753385441455,-915.11,0.00019627,2]
[374625715,1753385441464,-460.0,0.00019627,2]
[374625716,1753385441474,-460.0,0.00019627,2]
[374625717,1753385441487,-460.0,0.00019627,2]
[374625718,1753385441497,-460.0,0.00019627,2]
[374625719,1753385441507,-460.0,0.00019627,2]
[374625720,1753385441518,-582.72,0.00019627,2]
[374625721,1753385441528,-549.37,0.00019627,2]
[374625722,1753385441538,-460.0,0.00019627,2]
[374625723,1753385441547,-460.0,0.00019627,2]
[374625724,1753385441558,-460.0,0.00019627,2]
[374625725,1753385441567,-460.0,0.00019627,2]
[374625726,1753385441577,-460.0,0.00019627,2]
[374625727,1753385441587,-460.0,0.00019627,2]
[374625728,1753385441598,-460.0,0.00019627,2]
[374625729,1753385441607,-460.0,0.00019627,2]
[374625730,1753385441616,-460.0,0.00019627,2]
[374625731,1753385441626,-460.0,0.00019627,2]
[374625732,1753385441636,-460.0,0.00019627,2]
[374625733,1753385441646,-504.21,0.00019627,2]
[374625734,1753385441656,-579.21,0.00019627,2]
[374625735,1753385441666,-460.0,0.00019627,2]
[374625736,1753385441677,-460.0,0.00019627,2]
[374625737,1753385441687,-460.0,0.00019627,2]
[374625738,1753385441696,-766.2,0.00019627,2]
[374625739,1753385441706,-460.9834125,0.00019627,2]
[374625740,1753385441716,-460.0,0.00019627,2]
[374625741,1753385441726,-460.0,0.00019627,2]
[374625742,1753385441736,-165.98017348,0.00019627,2]
[374625743,1753385441747,-556.18,0.00019627,2]
[374625744,1753385441757,-464.32708438,0.00019627,2]
[374625745,1753385441766,-460.0,0.00019627,2]
[374625746,1753385441777,-460.0,0.00019627,2]
[374625747,1753385441787,-962.62,0.00019627,2]
[374625748,1753385441796,-460.0,0.00019627,2]
[374625749,1753385441806,-460.0,0.00019627,2]
[374625750,1753385441815,-466.05599788,0.00019627,2]
[374625751,1753385441825,-2148.38,0.00019627,2]
[374625752,1753385441834,-460.0,0.00019627,2]
[374625753,1753385441846,-460.0,0.00019627,2]
[374625754,1753385441856,-460.0,0.00019627,2]
[374625755,1753385441866,-817.39,0.00019627,2]
[374625756,1753385441876,-5357.72,0.00019627,2]
[374625757,1753385441887,-460.0,0.00019627,2]
[374625758,1753385441898,-460.0,0.00019627,2]
[374625759,1753385441908,-754.21,0.00019627,2]
[374625760,1753385441920,-460.0,0.00019627,2]
[374625761,1753385441930,-635.65,0.00019627,2]
[374625762,1753385441941,-460.0,0.00019627,2]
[374625763,1753385441950,-460.8337748,0.00019627,2]
[374625764,1753385441960,-460.0,0.00019627,2]
[374625765,1753385441971,-460.0,0.00019627,2]
[374625766,1753385441982,-728.76,0.00019627,2]
[374625767,1753385441993,-460.0,0.00019627,2]
[374625768,1753385442003,-460.0,0.00019627,2]
[374625769,1753385442012,-460.0,0.00019627,2]
[374625770,1753385442022,-460.0,0.00019627,2]
[374625771,1753385442032,-460.0,0.00019627,2]
[374625772,1753385442043,-1124.45,0.00019627,2]
[374625773,1753385442054,-618.23,0.00019627,2]
[374625774,1753385442063,-460.0,0.00019627,2]
[374625775,1753385442073,-2445.06,0.00019627,2]
[374625776,1753385442083,-4507.19,0.00019627,2]
[374625777,1753385442092,-460.0,0.00019627,2]
[374625778,1753385442101,-460.0,0.00019627,2]
[374625779,1753385442113,-1287.86,0.00019627,2]
[374625780,1753385442125,-460.0,0.00019627,2]
[374625781,1753385442137,-460.0,0.00019627,2]
[374625782,1753385442147,-460.0,0.00019627,2]
[374625783,1753385442158,-2379.26,0.00019627,2]
[374625784,1753385442168,-465.64436908,0.00019627,2]
[374625785,1753385442178,-460.0,0.00019627,2]
[374625786,1753385442188,-460.0,0.00019627,2]
[374625787,1753385442203,-460.0,0.00019627,2]
[374625788,1753385442212,-460.0,0.00019627,2]
[374625789,1753385442223,-460.0,0.00019627,2]
[374625790,1753385442232,-713.28,0.00019627,2]
[374625791,1753385442242,-460.0,0.00019627,2]
[374625792,1753385442252,-460.0,0.00019627,2]
[374625793,1753385442262,-460.0,0.00019627,2]
[374625794,1753385442273,-2046.78,0.00019627,2]
[374625795,1753385442284,-1767.26,0.00019627,2]
[374625796,1753385442294,-1427.87,0.00019627,2]
[374625797,1753385442303,-1965.0,0.00019627,2]
[374625798,1753385442314,-460.0,0.00019627,2]
[374625799,1753385442323,-970.59,0.00019627,2]
[374625800,1753385442333,-460.0,0.00019627,2]
[374625801,1753385442343,-3467.28,0.00019627,2]
[374625802,1753385442353,-460.0,0.00019627,2]
[374625803,1753385442362,-460.0,0.00019627,2]
[374625804,1753385442371,-500.0,0.00019627,2]
[374625805,1753385442382,-500.0,0.00019673,2]
[374625806,1753385442394,-500.0,0.00019673,2]
[374625807,1753385442404,-500.0,0.00019673,2]
[374625808,1753385442414,-500.0,0.00019673,2]
[374625809,1753385442423,-500.0,0.00019673,2]
[374625810,1753385442434,-460.0,0.000198,2]
[374625811,1753385442443,-460.0,0.000198,2]
[374625812,1753385442454,-460.0,0.000198,2]
[374625813,1753385442464,-1557.44075221,0.00019832,2]
[374625814,1753385442474,-500.0,0.000199,2]
[374625815,1753385442484,-500.0,0.000199,2]
[374625816,1753385442493,-2798.30460589,0.000199,2]
[374625817,1753385442503,-460.0,0.00019901,2]
[374625818,1753385442512,-460.0,0.00019901,2]
[374625819,1753385442525,-498.04747012,0.00019901,2]
[374625820,1753385442536,-460.0,0.00019901,2]
[374625821,1753385442545,-460.0,0.00019901,2]
[374625822,1753385442555,-460.0,0.00019901,2]
[374625823,1753385442565,-460.0,0.00019901,2]
[374625824,1753385442575,-565.03141817,0.00019901,2]
[374625825,1753385442584,-369.30558187,0.00019901,2]
[374625826,1753385442594,-460.0,0.00019901,2]
[374625827,1753385442603,-511.22715543,0.00019901,2]
[374625828,1753385442613,-460.0,0.00019901,2]
[374625829,1753385442622,-460.0,0.00019901,2]
[374625830,1753385442631,-460.0,0.00019901,2]
[374625831,1753385442640,-460.0,0.00019901,2]
[374625832,1753385442650,-207.97523436,0.00019901,2]
[374625833,1753385442660,-460.0,0.00019901,2]
[374625834,1753385442670,-713.76,0.00019901,2]
[374625835,1753385442679,-460.0,0.00019901,2]
[374625836,1753385442689,-460.0,0.00019901,2]
[374625837,1753385442698,-460.0,0.00019901,2]
[374625838,1753385442708,-460.0,0.00019901,2]
[374625839,1753385442718,-460.0,0.00019901,2]
[374625840,1753385442727,-460.0,0.00019901,2]
[374625841,1753385442736,-460.0,0.00019901,2]